[Event "Titled Tuesday Blitz August 16 Early 2022"]
[White "Carrasco Miranda, Andres"]
[Black "Gonzalez Vega, Alejandro"]
[WhiteFideId "3405990"]
[BlackFideId "3510042"]
[WhiteElo "2177"]
[BlackElo "2092"]
[Result "1-0"]
[Round "04"]
[TimeControl "180+2"]
[Date "2022.08.18"]
[WhiteClock "0:00:00"]
[BlackClock "0:00:00"]

1. d4 {[%clk 0:00:00]}  d5 {[%clk 0:00:00]} 2. c4 {[%clk 0:00:00]}  e6 {[%clk 0:00:00]} 3. Nf3 {[%clk 0:00:00]}  Nf6 {[%clk 0:00:00]} 4. g3 {[%clk 0:00:00]}  Be7 {[%clk 0:00:00]} 5. Bg2 {[%clk 0:00:00]}  O-O {[%clk 0:00:00]} 6. O-O {[%clk 0:00:00]}  dxc4 {[%clk 0:00:00]} 7. Qc2 {[%clk 0:00:00]}  a6 {[%clk 0:00:00]} 8. a4 {[%clk 0:00:00]}  Nc6 {[%clk 0:00:00]} 9. Qxc4 {[%clk 0:00:00]}  Na5 {[%clk 0:00:00]} 10. Qc3 {[%clk 0:00:00]}  Nc6 {[%clk 0:00:00]} 11. Bf4 {[%clk 0:00:00]}  Nd5 {[%clk 0:00:00]} 12. Qd2 {[%clk 0:00:00]}  Bb4 {[%clk 0:00:00]} 13. Nc3 {[%clk 0:00:00]}  Nxf4 {[%clk 0:00:00]} 14. Qxf4 {[%clk 0:00:00]}  Bd6 {[%clk 0:00:00]} 15. Qe4 {[%clk 0:00:00]}  Nb4 {[%clk 0:00:00]} 16. Rfd1 {[%clk 0:00:00]}  f5 {[%clk 0:00:00]} 17. Qb1 {[%clk 0:00:00]}  c6 {[%clk 0:00:00]} 18. e4 {[%clk 0:00:00]}  f4 {[%clk 0:00:00]} 19. e5 {[%clk 0:00:00]}  Be7 {[%clk 0:00:00]} 20. Qe4 {[%clk 0:00:00]}  fxg3 {[%clk 0:00:00]} 21. hxg3 {[%clk 0:00:00]}  Qe8 {[%clk 0:00:00]} 22. Qg4 {[%clk 0:00:00]}  Qf7 {[%clk 0:00:00]} 23. Ne4 {[%clk 0:00:00]}  h6 {[%clk 0:00:00]} 24. Nh4 {[%clk 0:00:00]}  Bxh4 {[%clk 0:00:00]} 25. Qxh4 {[%clk 0:00:00]}  Nd5 {[%clk 0:00:00]} 26. Rd2 {[%clk 0:00:00]}  Qg6 {[%clk 0:00:00]} 27. Nd6 {[%clk 0:00:00]}  Rb8 {[%clk 0:00:00]} 28. Be4 {[%clk 0:00:00]}  Qg5 {[%clk 0:00:00]} 29. Qxg5 {[%clk 0:00:00]}  hxg5 {[%clk 0:00:00]} 30. Kg2 {[%clk 0:00:00]}  Ne7 {[%clk 0:00:00]} 31. Rh1 {[%clk 0:00:00]}  g6 {[%clk 0:00:00]} 32. Rc2 {[%clk 0:00:00]}  Kg7 {[%clk 0:00:00]} 33. a5 {[%clk 0:00:00]}  Bd7 {[%clk 0:00:00]} 34. Rc5 {[%clk 0:00:00]}  Nd5 {[%clk 0:00:00]} 35. Bxd5 {[%clk 0:00:00]}  exd5 {[%clk 0:00:00]} 36. Rc3 {[%clk 0:00:00]}  g4 {[%clk 0:00:00]} 37. Rb3 {[%clk 0:00:00]}  Bc8 {[%clk 0:00:00]} 38. Rc1 {[%clk 0:00:00]}  Rf3 {[%clk 0:00:00]} 39. Rxf3 {[%clk 0:00:00]}  gxf3+ {[%clk 0:00:00]} 40. Kxf3 {[%clk 0:00:00]}  Be6 {[%clk 0:00:00]} 41. Ke3 {[%clk 0:00:00]}  Rf8 {[%clk 0:00:00]} 42. Rh1 {[%clk 0:00:00]}  Bf5 {[%clk 0:00:00]} 43. f4 {[%clk 0:00:00]}  Bc2 {[%clk 0:00:00]} 44. g4 {[%clk 0:00:00]}  Ba4 {[%clk 0:00:00]} 45. f5 {[%clk 0:00:00]}  Bb5 {[%clk 0:00:00]} 46. f6+ {[%clk 0:00:00]}  Kg8 {[%clk 0:00:00]} 47. Rh6 {[%clk 0:00:00]}  Be2 {[%clk 0:00:00]} 48. Rxg6+ {[%clk 0:00:00]}  Kh8 {[%clk 0:00:00]} 49. g5 {[%clk 0:00:00]}  Bh5 {[%clk 0:00:00]} 50. Rh6+ {[%clk 0:00:00]}  Kg8 {[%clk 0:00:00]} 51. Rxh5 {[%clk 0:00:00]} 1-0


[Site "https://www.chess.com"]

[Event "Titled Tuesday Blitz August 16 Early 2022"]
[White "Ciuffoletti, Paolo"]
[Black "Brozyna, Mateusz"]
[WhiteFideId "807630"]
[BlackFideId "21816140"]
[WhiteElo "2143"]
[BlackElo "2030"]
[Result "0-1"]
[Round "04"]
[TimeControl "180+2"]
[Date "2022.08.18"]
[WhiteClock "0:00:00"]
[BlackClock "0:00:00"]

1. e4 {[%clk 0:00:00]}  e5 {[%clk 0:00:00]} 2. Nf3 {[%clk 0:00:00]}  Nc6 {[%clk 0:00:00]} 3. Bc4 {[%clk 0:00:00]}  Bc5 {[%clk 0:00:00]} 4. b4 {[%clk 0:00:00]}  Bxb4 {[%clk 0:00:00]} 5. c3 {[%clk 0:00:00]}  Ba5 {[%clk 0:00:00]} 6. d4 {[%clk 0:00:00]}  d6 {[%clk 0:00:00]} 7. dxe5 {[%clk 0:00:00]}  Nge7 {[%clk 0:00:00]} 8. exd6 {[%clk 0:00:00]}  cxd6 {[%clk 0:00:00]} 9. Bf4 {[%clk 0:00:00]}  Bg4 {[%clk 0:00:00]} 10. Bxf7+ {[%clk 0:00:00]}  Kf8 {[%clk 0:00:00]} 11. Bb3 {[%clk 0:00:00]}  Ne5 {[%clk 0:00:00]} 12. Bxe5 {[%clk 0:00:00]}  dxe5 {[%clk 0:00:00]} 13. Qe2 {[%clk 0:00:00]}  Ng6 {[%clk 0:00:00]} 14. O-O {[%clk 0:00:00]}  Qf6 {[%clk 0:00:00]} 15. Nbd2 {[%clk 0:00:00]}  Nf4 {[%clk 0:00:00]} 16. Qb5 {[%clk 0:00:00]}  Bxc3 {[%clk 0:00:00]} 17. Rac1 {[%clk 0:00:00]}  Rc8 {[%clk 0:00:00]} 18. Qxb7 {[%clk 0:00:00]}  Ne2+ {[%clk 0:00:00]} 19. Kh1 {[%clk 0:00:00]}  Nxc1 {[%clk 0:00:00]} 20. Rxc1 {[%clk 0:00:00]}  Qe7 {[%clk 0:00:00]} 21. Qd5 {[%clk 0:00:00]}  Bxd2 {[%clk 0:00:00]} 22. Rxc8+ {[%clk 0:00:00]}  Bxc8 {[%clk 0:00:00]} 23. Nxd2 {[%clk 0:00:00]}  g6 {[%clk 0:00:00]} 24. Nf3 {[%clk 0:00:00]}  Kg7 {[%clk 0:00:00]} 25. Nxe5 {[%clk 0:00:00]}  Rd8 {[%clk 0:00:00]} 26. Qa5 {[%clk 0:00:00]}  Qd6 {[%clk 0:00:00]} 27. h3 {[%clk 0:00:00]}  a6 {[%clk 0:00:00]} 28. Nf7 {[%clk 0:00:00]}  Qd2 {[%clk 0:00:00]} 29. Qxd8 {[%clk 0:00:00]}  Qxd8 {[%clk 0:00:00]} 30. Nxd8 {[%clk 0:00:00]}  Kf6 {[%clk 0:00:00]} 31. Nc6 {[%clk 0:00:00]}  Bd7 {[%clk 0:00:00]} 32. Bd5 {[%clk 0:00:00]}  h5 {[%clk 0:00:00]} 33. f4 {[%clk 0:00:00]}  g5 {[%clk 0:00:00]} 34. g3 {[%clk 0:00:00]}  Bxh3 {[%clk 0:00:00]} 0-1


[Site "https://www.chess.com"]

[Event "Titled Tuesday Blitz August 16 Early 2022"]
[White "Cruz Mendez, Jean Marco"]
[Black "Martinez Reyes, Pedro Ramon"]
[WhiteFideId "3526402"]
[BlackFideId "3901807"]
[WhiteElo "2064"]
[BlackElo "2327"]
[Result "1/2-1/2"]
[Round "04"]
[TimeControl "180+2"]
[Date "2022.08.18"]
[WhiteClock "0:00:00"]
[BlackClock "0:00:00"]

1. e4 {[%clk 0:00:00]}  c6 {[%clk 0:00:00]} 2. Nf3 {[%clk 0:00:00]}  g6 {[%clk 0:00:00]} 3. d3 {[%clk 0:00:00]}  Bg7 {[%clk 0:00:00]} 4. Nc3 {[%clk 0:00:00]}  b5 {[%clk 0:00:00]} 5. Be2 {[%clk 0:00:00]}  d5 {[%clk 0:00:00]} 6. exd5 {[%clk 0:00:00]}  b4 {[%clk 0:00:00]} 7. Ne4 {[%clk 0:00:00]}  cxd5 {[%clk 0:00:00]} 8. Nc5 {[%clk 0:00:00]}  Nd7 {[%clk 0:00:00]} 9. Nxd7 {[%clk 0:00:00]}  Bxd7 {[%clk 0:00:00]} 10. O-O {[%clk 0:00:00]}  Nh6 {[%clk 0:00:00]} 11. a3 {[%clk 0:00:00]}  bxa3 {[%clk 0:00:00]} 12. Rxa3 {[%clk 0:00:00]}  O-O {[%clk 0:00:00]} 13. c3 {[%clk 0:00:00]}  a5 {[%clk 0:00:00]} 14. d4 {[%clk 0:00:00]}  Nf5 {[%clk 0:00:00]} 15. Bf4 {[%clk 0:00:00]}  Qb6 {[%clk 0:00:00]} 16. Qd2 {[%clk 0:00:00]}  Nd6 {[%clk 0:00:00]} 17. Rfa1 {[%clk 0:00:00]}  a4 {[%clk 0:00:00]} 18. Ne5 {[%clk 0:00:00]}  Bb5 {[%clk 0:00:00]} 19. h3 {[%clk 0:00:00]}  Bxe2 {[%clk 0:00:00]} 20. Qxe2 {[%clk 0:00:00]}  Bxe5 {[%clk 0:00:00]} 21. dxe5 {[%clk 0:00:00]}  Nc4 {[%clk 0:00:00]} 22. Rxa4 {[%clk 0:00:00]}  Rxa4 {[%clk 0:00:00]} 23. Rxa4 {[%clk 0:00:00]}  Qxb2 {[%clk 0:00:00]} 24. Qf3 {[%clk 0:00:00]}  Qb1+ {[%clk 0:00:00]} 25. Kh2 {[%clk 0:00:00]}  Qf5 {[%clk 0:00:00]} 26. g4 {[%clk 0:00:00]}  Qe6 {[%clk 0:00:00]} 27. Qg3 {[%clk 0:00:00]}  f6 {[%clk 0:00:00]} 28. exf6 {[%clk 0:00:00]}  Qxf6 {[%clk 0:00:00]} 29. Be3 {[%clk 0:00:00]}  e5 {[%clk 0:00:00]} 30. Ra2 {[%clk 0:00:00]}  d4 {[%clk 0:00:00]} 31. cxd4 {[%clk 0:00:00]}  exd4 {[%clk 0:00:00]} 32. g5 {[%clk 0:00:00]}  Qg7 {[%clk 0:00:00]} 33. Bf4 {[%clk 0:00:00]}  Qd7 {[%clk 0:00:00]} 34. Re2 {[%clk 0:00:00]}  d3 {[%clk 0:00:00]} 35. Re1 {[%clk 0:00:00]}  d2 {[%clk 0:00:00]} 36. Rd1 {[%clk 0:00:00]}  Qd4 {[%clk 0:00:00]} 37. Be3 {[%clk 0:00:00]}  Nxe3 {[%clk 0:00:00]} 38. Qxe3 {[%clk 0:00:00]}  Qxe3 {[%clk 0:00:00]} 39. fxe3 {[%clk 0:00:00]}  Rf2+ {[%clk 0:00:00]} 40. Kg3 {[%clk 0:00:00]}  Re2 {[%clk 0:00:00]} 41. Kf3 {[%clk 0:00:00]}  Rh2 {[%clk 0:00:00]} 42. e4 {[%clk 0:00:00]}  Rxh3+ {[%clk 0:00:00]} 43. Kf4 {[%clk 0:00:00]}  Rh2 {[%clk 0:00:00]} 44. Ke3 {[%clk 0:00:00]}  Kf7 {[%clk 0:00:00]} 45. Rxd2 {[%clk 0:00:00]}  Rh1 {[%clk 0:00:00]} 46. Kf4 {[%clk 0:00:00]}  Ke6 {[%clk 0:00:00]} 47. Ra2 {[%clk 0:00:00]}  Rf1+ {[%clk 0:00:00]} 48. Ke3 {[%clk 0:00:00]}  Rg1 {[%clk 0:00:00]} 49. Ra6+ {[%clk 0:00:00]}  Ke5 {[%clk 0:00:00]} 50. Ra5+ {[%clk 0:00:00]}  Ke6 {[%clk 0:00:00]} 51. Kf4 {[%clk 0:00:00]}  Rf1+ {[%clk 0:00:00]} 52. Kg4 {[%clk 0:00:00]}  Rg1+ {[%clk 0:00:00]} 53. Kf3 {[%clk 0:00:00]}  Rf1+ {[%clk 0:00:00]} 54. Ke2 {[%clk 0:00:00]}  Rg1 {[%clk 0:00:00]} 55. Ke3 {[%clk 0:00:00]}  Rg3+ {[%clk 0:00:00]} 56. Kd4 {[%clk 0:00:00]}  Rg1 {[%clk 0:00:00]} 57. Ra7 {[%clk 0:00:00]}  Rd1+ {[%clk 0:00:00]} 58. Ke3 {[%clk 0:00:00]}  Re1+ {[%clk 0:00:00]} 59. Kf3 {[%clk 0:00:00]}  Rf1+ {[%clk 0:00:00]} 60. Ke2 {[%clk 0:00:00]}  Rg1 {[%clk 0:00:00]} 61. Ra5 {[%clk 0:00:00]}  Rg3 {[%clk 0:00:00]} 62. Kf2 {[%clk 0:00:00]}  Rb3 {[%clk 0:00:00]} 63. Ra7 {[%clk 0:00:00]}  Ke5 {[%clk 0:00:00]} 64. Rxh7 {[%clk 0:00:00]}  Kxe4 {[%clk 0:00:00]} 65. Rf7 {[%clk 0:00:00]}  Rh3 {[%clk 0:00:00]} 66. Kg2 {[%clk 0:00:00]}  Rc3 {[%clk 0:00:00]} 67. Rf6 {[%clk 0:00:00]}  Rc5 {[%clk 0:00:00]} 68. Rxg6 {[%clk 0:00:00]}  Kf4 {[%clk 0:00:00]} 69. Kh3 {[%clk 0:00:00]}  Rxg5 {[%clk 0:00:00]} 70. Rf6+ {[%clk 0:00:00]}  Rf5 {[%clk 0:00:00]} 71. Rh6 {[%clk 0:00:00]}  Rg5 {[%clk 0:00:00]} 72. Rh4+ {[%clk 0:00:00]}  Kf5 {[%clk 0:00:00]} 73. Ra4 {[%clk 0:00:00]}  Kg6 {[%clk 0:00:00]} 74. Ra6+ {[%clk 0:00:00]}  Kh5 {[%clk 0:00:00]} 75. Ra4 {[%clk 0:00:00]}  Rc5 {[%clk 0:00:00]} 76. Rh4+ {[%clk 0:00:00]}  Kg5 {[%clk 0:00:00]} 77. Rg4+ {[%clk 0:00:00]}  Kh5 {[%clk 0:00:00]} 78. Ra4 {[%clk 0:00:00]}  Kg5 {[%clk 0:00:00]} 79. Rg4+ {[%clk 0:00:00]}  Kh5 {[%clk 0:00:00]} 80. Rh4+ {[%clk 0:00:00]}  Kg5 {[%clk 0:00:00]} 81. Rg4+ {[%clk 0:00:00]} 1/2-1/2


[Site "https://www.chess.com"]

[Event "Titled Tuesday Blitz August 16 Early 2022"]
[White "Demchenko, Anton"]
[Black "Secer, Ata"]
[WhiteFideId "4160258"]
[BlackFideId "6303293"]
[WhiteElo "2539"]
[BlackElo "2282"]
[Result "1-0"]
[Round "04"]
[TimeControl "180+1"]
[Date "2022.08.16"]
[WhiteClock "0:00:23"]
[BlackClock "0:00:02"]

1. e4 {[%clk 0:03:00]}  c5 {[%clk 0:02:59]} 2. Nf3 {[%clk 0:03:00]}  e6 {[%clk 0:03:00]} 3. g3 {[%clk 0:03:00]}  Nc6 {[%clk 0:02:56]} 4. Bg2 {[%clk 0:03:00]}  Nf6 {[%clk 0:02:56]} 5. Qe2 {[%clk 0:03:00]}  d6 {[%clk 0:02:52]} 6. O-O {[%clk 0:03:00]}  Be7 {[%clk 0:02:53]} 7. c3 {[%clk 0:03:01]}  O-O {[%clk 0:02:52]} 8. Rd1 {[%clk 0:03:01]}  Bd7 {[%clk 0:02:52]} 9. d4 {[%clk 0:03:00]}  cxd4 {[%clk 0:02:52]} 10. cxd4 {[%clk 0:03:01]}  d5 {[%clk 0:02:50]} 11. e5 {[%clk 0:03:01]}  Ne4 {[%clk 0:02:50]} 12. Be3 {[%clk 0:03:02]}  Rc8 {[%clk 0:02:49]} 13. Ne1 {[%clk 0:03:02]}  f5 {[%clk 0:02:47]} 14. f3 {[%clk 0:03:02]}  Ng5 {[%clk 0:02:46]} 15. Nc3 {[%clk 0:03:02]}  Na5 {[%clk 0:02:09]} 16. Nd3 {[%clk 0:02:57]}  Nc4 {[%clk 0:02:07]} 17. Bf2 {[%clk 0:02:56]}  b5 {[%clk 0:01:58]} 18. Rac1 {[%clk 0:02:54]}  b4 {[%clk 0:01:55]} 19. Nb1 {[%clk 0:02:54]}  Bb5 {[%clk 0:01:46]} 20. Qe1 {[%clk 0:02:48]}  a5 {[%clk 0:01:45]} 21. b3 {[%clk 0:02:31]}  Nb6 {[%clk 0:01:30]} 22. Nc5 {[%clk 0:02:17]}  Nd7 {[%clk 0:01:16]} 23. a3 {[%clk 0:01:52]}  Nxc5 {[%clk 0:00:54]} 24. dxc5 {[%clk 0:01:53]}  bxa3 {[%clk 0:00:47]} 25. Nxa3 {[%clk 0:01:47]}  Ba6 {[%clk 0:00:46]} 26. Bd4 {[%clk 0:01:34]}  Qc7 {[%clk 0:00:43]} 27. Rc3 {[%clk 0:01:28]}  Rb8 {[%clk 0:00:36]} 28. Nc2 {[%clk 0:01:27]}  Nf7 {[%clk 0:00:35]} 29. f4 {[%clk 0:01:16]}  Nd8 {[%clk 0:00:35]} 30. Bf2 {[%clk 0:01:16]}  Nc6 {[%clk 0:00:35]} 31. Nd4 {[%clk 0:01:15]}  Nxd4 {[%clk 0:00:31]} 32. Bxd4 {[%clk 0:01:14]}  Rb4 {[%clk 0:00:23]} 33. Qe3 {[%clk 0:01:12]}  Rfb8 {[%clk 0:00:22]} 34. Ra1 {[%clk 0:01:06]}  Bb5 {[%clk 0:00:19]} 35. h3 {[%clk 0:00:48]}  Bc6 {[%clk 0:00:18]} 36. Kh2 {[%clk 0:00:46]}  a4 {[%clk 0:00:18]} 37. bxa4 {[%clk 0:00:46]}  Bxa4 {[%clk 0:00:18]} 38. c6 {[%clk 0:00:45]}  h6 {[%clk 0:00:10]} 39. h4 {[%clk 0:00:45]}  Kh7 {[%clk 0:00:10]} 40. Kh3 {[%clk 0:00:43]}  Ra8 {[%clk 0:00:07]} 41. h5 {[%clk 0:00:37]}  Ra6 {[%clk 0:00:07]} 42. Rac1 {[%clk 0:00:36]}  Bb5 {[%clk 0:00:05]} 43. Bc5 {[%clk 0:00:27]}  Bxc5 {[%clk 0:00:04]} 44. Qxc5 {[%clk 0:00:27]}  Raa4 {[%clk 0:00:02]} 45. Qd6 {[%clk 0:00:27]}  Ra7 {[%clk 0:00:02]} 46. Qxe6 {[%clk 0:00:26]}  Bc4 {[%clk 0:00:01]} 47. Qxf5+ {[%clk 0:00:24]}  Kg8 {[%clk 0:00:02]} 48. Rxc4 {[%clk 0:00:23]} 1-0


[Site "https://www.chess.com"]

[Event "Titled Tuesday Blitz August 16 Early 2022"]
[White "Derjabin, Ilja"]
[Black "Sailer, Mike"]
[WhiteFideId "14104768"]
[BlackFideId "2012901"]
[WhiteElo "2341"]
[BlackElo "2109"]
[Result "0-1"]
[Round "04"]
[TimeControl "180+2"]
[Date "2022.08.18"]
[WhiteClock "0:00:00"]
[BlackClock "0:00:00"]

1. d4 {[%clk 0:00:00]}  d5 {[%clk 0:00:00]} 2. c4 {[%clk 0:00:00]}  Bf5 {[%clk 0:00:00]} 3. cxd5 {[%clk 0:00:00]}  Bxb1 {[%clk 0:00:00]} 4. Rxb1 {[%clk 0:00:00]}  Qxd5 {[%clk 0:00:00]} 5. Nf3 {[%clk 0:00:00]}  Nc6 {[%clk 0:00:00]} 6. e3 {[%clk 0:00:00]}  e5 {[%clk 0:00:00]} 7. Qa4 {[%clk 0:00:00]}  Bb4+ {[%clk 0:00:00]} 8. Bd2 {[%clk 0:00:00]}  Bxd2+ {[%clk 0:00:00]} 9. Kxd2 {[%clk 0:00:00]}  exd4 {[%clk 0:00:00]} 10. Nxd4 {[%clk 0:00:00]}  O-O-O {[%clk 0:00:00]} 11. Rc1 {[%clk 0:00:00]}  Nxd4 {[%clk 0:00:00]} 12. exd4 {[%clk 0:00:00]}  Qxd4+ {[%clk 0:00:00]} 13. Qxd4 {[%clk 0:00:00]}  Rxd4+ {[%clk 0:00:00]} 14. Kc3 {[%clk 0:00:00]}  Rd6 {[%clk 0:00:00]} 15. Bc4 {[%clk 0:00:00]}  Nf6 {[%clk 0:00:00]} 16. f3 {[%clk 0:00:00]}  Nd5+ {[%clk 0:00:00]} 17. Kb3 {[%clk 0:00:00]}  Rb6+ {[%clk 0:00:00]} 18. Ka3 {[%clk 0:00:00]}  Ne3 {[%clk 0:00:00]} 19. Bxf7 {[%clk 0:00:00]}  Rd8 {[%clk 0:00:00]} 20. Rhe1 {[%clk 0:00:00]}  Rd3+ {[%clk 0:00:00]} 21. Rc3 {[%clk 0:00:00]}  Rxc3+ {[%clk 0:00:00]} 22. bxc3 {[%clk 0:00:00]}  Nc2+ {[%clk 0:00:00]} 0-1


[Site "https://www.chess.com"]

[Event "Titled Tuesday Blitz August 16 Early 2022"]
[White "Diaz Perez, Michel Alejandro"]
[Black "Ibarra Jerez, Jose Carlos"]
[WhiteFideId "3517179"]
[BlackFideId "2226332"]
[WhiteElo "2313"]
[BlackElo "2628"]
[Result "0-1"]
[Round "04"]
[TimeControl "180+1"]
[Date "2022.08.16"]
[WhiteClock "0:00:01"]
[BlackClock "0:00:12"]

1. e4 {[%clk 0:03:00]}  c5 {[%clk 0:02:59]} 2. Nf3 {[%clk 0:03:00]}  Nf6 {[%clk 0:02:54]} 3. e5 {[%clk 0:02:59]}  Nd5 {[%clk 0:02:54]} 4. c4 {[%clk 0:02:57]}  Nb4 {[%clk 0:02:52]} 5. a3 {[%clk 0:02:48]}  N4c6 {[%clk 0:02:52]} 6. Nc3 {[%clk 0:02:48]}  g6 {[%clk 0:02:49]} 7. d3 {[%clk 0:02:47]}  Bg7 {[%clk 0:02:49]} 8. Bf4 {[%clk 0:02:47]}  Nd4 {[%clk 0:02:47]} 9. Nxd4 {[%clk 0:02:34]}  cxd4 {[%clk 0:02:46]} 10. Nb5 {[%clk 0:02:35]}  Nc6 {[%clk 0:02:41]} 11. e6 {[%clk 0:02:34]}  d6 {[%clk 0:02:35]} 12. exf7+ {[%clk 0:02:34]}  Kxf7 {[%clk 0:02:36]} 13. a4 {[%clk 0:02:34]}  Re8 {[%clk 0:02:27]} 14. Be2 {[%clk 0:02:33]}  a6 {[%clk 0:02:19]} 15. Na3 {[%clk 0:02:33]}  e5 {[%clk 0:02:16]} 16. Bg3 {[%clk 0:02:24]}  Qa5+ {[%clk 0:02:14]} 17. Qd2 {[%clk 0:02:24]}  Bh6 {[%clk 0:02:12]} 18. Qxa5 {[%clk 0:02:22]}  Nxa5 {[%clk 0:02:13]} 19. Nc2 {[%clk 0:02:16]}  Nb3 {[%clk 0:02:08]} 20. Ra3 {[%clk 0:01:47]}  Nc1 {[%clk 0:02:05]} 21. Bf3 {[%clk 0:01:28]}  Bf5 {[%clk 0:01:56]} 22. Be4 {[%clk 0:01:27]}  Bxe4 {[%clk 0:01:41]} 23. dxe4 {[%clk 0:01:28]}  Rac8 {[%clk 0:01:42]} 24. b3 {[%clk 0:01:28]}  b5 {[%clk 0:01:34]} 25. axb5 {[%clk 0:01:27]}  axb5 {[%clk 0:01:35]} 26. Nb4 {[%clk 0:01:17]}  bxc4 {[%clk 0:01:30]} 27. bxc4 {[%clk 0:01:18]}  Rxc4 {[%clk 0:01:27]} 28. Nd5 {[%clk 0:01:17]}  Rb8 {[%clk 0:01:08]} 29. Ra7+ {[%clk 0:01:13]}  Kf8 {[%clk 0:01:08]} 30. Nf6 {[%clk 0:00:59]}  Rb1 {[%clk 0:01:01]} 31. Bh4 {[%clk 0:00:27]}  g5 {[%clk 0:00:35]} 32. Nxh7+ {[%clk 0:00:14]}  Ke8 {[%clk 0:00:34]} 33. Nxg5 {[%clk 0:00:12]}  Rc2 {[%clk 0:00:15]} 34. Ra8+ {[%clk 0:00:09]}  Kd7 {[%clk 0:00:15]} 35. Ra7+ {[%clk 0:00:09]}  Kc6 {[%clk 0:00:14]} 36. Kd1 {[%clk 0:00:07]}  d3 {[%clk 0:00:12]} 37. Ra1 {[%clk 0:00:01]}  Rxa1 {[%clk 0:00:12]} 0-1


[Site "https://www.chess.com"]

[Event "Titled Tuesday Blitz August 16 Early 2022"]
[White "Eynullayev, Altay"]
[Black "Begunov, Konstantin"]
[WhiteFideId "13413562"]
[BlackFideId "4118510"]
[WhiteElo "2079"]
[BlackElo "2262"]
[Result "0-1"]
[Round "04"]
[TimeControl "180+2"]
[Date "2022.08.18"]
[WhiteClock "0:00:00"]
[BlackClock "0:00:00"]

1. e4 {[%clk 0:00:00]}  c5 {[%clk 0:00:00]} 2. Nf3 {[%clk 0:00:00]}  d6 {[%clk 0:00:00]} 3. d4 {[%clk 0:00:00]}  cxd4 {[%clk 0:00:00]} 4. Nxd4 {[%clk 0:00:00]}  Nf6 {[%clk 0:00:00]} 5. Nc3 {[%clk 0:00:00]}  a6 {[%clk 0:00:00]} 6. g3 {[%clk 0:00:00]}  e5 {[%clk 0:00:00]} 7. Nde2 {[%clk 0:00:00]}  b5 {[%clk 0:00:00]} 8. Bg2 {[%clk 0:00:00]}  Bb7 {[%clk 0:00:00]} 9. O-O {[%clk 0:00:00]}  Nbd7 {[%clk 0:00:00]} 10. Nd5 {[%clk 0:00:00]}  Bxd5 {[%clk 0:00:00]} 11. exd5 {[%clk 0:00:00]}  g6 {[%clk 0:00:00]} 12. a4 {[%clk 0:00:00]}  Bg7 {[%clk 0:00:00]} 13. Be3 {[%clk 0:00:00]}  O-O {[%clk 0:00:00]} 14. Qd3 {[%clk 0:00:00]}  b4 {[%clk 0:00:00]} 15. a5 {[%clk 0:00:00]}  Qc7 {[%clk 0:00:00]} 16. Rfc1 {[%clk 0:00:00]}  Nc5 {[%clk 0:00:00]} 17. Qd1 {[%clk 0:00:00]}  Ng4 {[%clk 0:00:00]} 18. Qd2 {[%clk 0:00:00]}  Nxe3 {[%clk 0:00:00]} 19. Qxe3 {[%clk 0:00:00]}  f5 {[%clk 0:00:00]} 20. c3 {[%clk 0:00:00]}  Nb3 {[%clk 0:00:00]} 21. cxb4 {[%clk 0:00:00]}  Nxc1 {[%clk 0:00:00]} 22. Rxc1 {[%clk 0:00:00]}  Qb7 {[%clk 0:00:00]} 23. Rc4 {[%clk 0:00:00]}  Rac8 {[%clk 0:00:00]} 24. Qc1 {[%clk 0:00:00]}  Rxc4 {[%clk 0:00:00]} 25. Qxc4 {[%clk 0:00:00]}  Rc8 {[%clk 0:00:00]} 26. Qb3 {[%clk 0:00:00]}  Rb8 {[%clk 0:00:00]} 27. Qd3 {[%clk 0:00:00]}  Qb5 {[%clk 0:00:00]} 28. Qxb5 {[%clk 0:00:00]}  Rxb5 {[%clk 0:00:00]} 29. Nc1 {[%clk 0:00:00]}  Rxb4 {[%clk 0:00:00]} 30. Nd3 {[%clk 0:00:00]}  Rb3 {[%clk 0:00:00]} 31. Bf1 {[%clk 0:00:00]}  e4 {[%clk 0:00:00]} 32. Nf4 {[%clk 0:00:00]}  Rxb2 {[%clk 0:00:00]} 33. Bxa6 {[%clk 0:00:00]}  Bd4 {[%clk 0:00:00]} 34. Be2 {[%clk 0:00:00]}  e3 {[%clk 0:00:00]} 35. fxe3 {[%clk 0:00:00]}  Bxe3+ {[%clk 0:00:00]} 36. Kf1 {[%clk 0:00:00]}  Bxf4 {[%clk 0:00:00]} 37. gxf4 {[%clk 0:00:00]}  Rb4 {[%clk 0:00:00]} 38. a6 {[%clk 0:00:00]}  Rxf4+ {[%clk 0:00:00]} 39. Ke1 {[%clk 0:00:00]}  Ra4 {[%clk 0:00:00]} 40. Kd2 {[%clk 0:00:00]}  Kf7 {[%clk 0:00:00]} 41. Kc3 {[%clk 0:00:00]}  Kf6 {[%clk 0:00:00]} 42. Kb3 {[%clk 0:00:00]}  Ra1 {[%clk 0:00:00]} 43. Kb2 {[%clk 0:00:00]}  Ra5 {[%clk 0:00:00]} 44. Kb3 {[%clk 0:00:00]}  f4 {[%clk 0:00:00]} 45. Kb4 {[%clk 0:00:00]}  Ra1 {[%clk 0:00:00]} 46. Bb5 {[%clk 0:00:00]}  f3 {[%clk 0:00:00]} 47. Ba4 {[%clk 0:00:00]}  f2 {[%clk 0:00:00]} 48. a7 {[%clk 0:00:00]}  Rxa4+ {[%clk 0:00:00]} 49. Kxa4 {[%clk 0:00:00]}  f1=Q {[%clk 0:00:00]} 50. Ka5 {[%clk 0:00:00]}  Qa1+ {[%clk 0:00:00]} 51. Kb6 {[%clk 0:00:00]}  Ke5 {[%clk 0:00:00]} 52. Kb7 {[%clk 0:00:00]}  Kxd5 {[%clk 0:00:00]} 53. a8=Q {[%clk 0:00:00]}  Qxa8+ {[%clk 0:00:00]} 54. Kxa8 {[%clk 0:00:00]}  Kc6 {[%clk 0:00:00]} 0-1


[Site "https://www.chess.com"]

[Event "Titled Tuesday Blitz August 16 Early 2022"]
[White "Fawzy, Adham"]
[Black "Sharapov, Evgeny"]
[WhiteFideId "10613129"]
[BlackFideId "14103133"]
[WhiteElo "2541"]
[BlackElo "2367"]
[Result "1-0"]
[Round "04"]
[TimeControl "180+2"]
[Date "2022.08.18"]
[WhiteClock "0:00:00"]
[BlackClock "0:00:00"]

1. e4 {[%clk 0:00:00]}  c5 {[%clk 0:00:00]} 2. c4 {[%clk 0:00:00]}  e5 {[%clk 0:00:00]} 3. Nc3 {[%clk 0:00:00]}  Nc6 {[%clk 0:00:00]} 4. g3 {[%clk 0:00:00]}  g6 {[%clk 0:00:00]} 5. Bg2 {[%clk 0:00:00]}  Bg7 {[%clk 0:00:00]} 6. Nge2 {[%clk 0:00:00]}  Nge7 {[%clk 0:00:00]} 7. d3 {[%clk 0:00:00]}  O-O {[%clk 0:00:00]} 8. O-O {[%clk 0:00:00]}  d6 {[%clk 0:00:00]} 9. a3 {[%clk 0:00:00]}  a5 {[%clk 0:00:00]} 10. Rb1 {[%clk 0:00:00]}  Rb8 {[%clk 0:00:00]} 11. Be3 {[%clk 0:00:00]}  Be6 {[%clk 0:00:00]} 12. Qd2 {[%clk 0:00:00]}  f5 {[%clk 0:00:00]} 13. Nd5 {[%clk 0:00:00]}  Bxd5 {[%clk 0:00:00]} 14. exd5 {[%clk 0:00:00]}  Nd4 {[%clk 0:00:00]} 15. Nxd4 {[%clk 0:00:00]}  exd4 {[%clk 0:00:00]} 16. Bg5 {[%clk 0:00:00]}  Bf6 {[%clk 0:00:00]} 17. Rfe1 {[%clk 0:00:00]}  Bxg5 {[%clk 0:00:00]} 18. Qxg5 {[%clk 0:00:00]}  Nc8 {[%clk 0:00:00]} 19. Qxd8 {[%clk 0:00:00]}  Rxd8 {[%clk 0:00:00]} 20. b4 {[%clk 0:00:00]}  axb4 {[%clk 0:00:00]} 21. axb4 {[%clk 0:00:00]}  b6 {[%clk 0:00:00]} 22. b5 {[%clk 0:00:00]}  Ra8 {[%clk 0:00:00]} 23. Ra1 {[%clk 0:00:00]}  Rxa1 {[%clk 0:00:00]} 24. Rxa1 {[%clk 0:00:00]}  Kf7 {[%clk 0:00:00]} 25. h4 {[%clk 0:00:00]}  h5 {[%clk 0:00:00]} 26. Ra8 {[%clk 0:00:00]}  Ke7 {[%clk 0:00:00]} 27. f3 {[%clk 0:00:00]}  Kd7 {[%clk 0:00:00]} 28. Bh3 {[%clk 0:00:00]}  Kc7 {[%clk 0:00:00]} 29. g4 {[%clk 0:00:00]}  fxg4 {[%clk 0:00:00]} 30. fxg4 {[%clk 0:00:00]}  Kb7 {[%clk 0:00:00]} 31. Ra2 {[%clk 0:00:00]}  Rf8 {[%clk 0:00:00]} 32. gxh5 {[%clk 0:00:00]}  gxh5 {[%clk 0:00:00]} 33. Rg2 {[%clk 0:00:00]}  Rf7 {[%clk 0:00:00]} 34. Rg6 {[%clk 0:00:00]}  Kc7 {[%clk 0:00:00]} 35. Bxc8 {[%clk 0:00:00]}  Kxc8 {[%clk 0:00:00]} 36. Rxd6 {[%clk 0:00:00]}  Kc7 {[%clk 0:00:00]} 37. Rc6+ {[%clk 0:00:00]}  Kb7 {[%clk 0:00:00]} 38. d6 {[%clk 0:00:00]} 1-0


[Site "https://www.chess.com"]